fUST/lending_fUST_20250624
["ID","MTS","AMOUNT","RATE_DAILY","PERIOD"]
[367283429,1750729840100,-470.31784457,0.00019275,2]
[367283431,1750729840110,-462.11467987,0.00019275,2]
[367283434,1750729840122,-464.3875564,0.00019275,2]
[367283436,1750729840132,-465.00662261,0.00019275,2]
[367283438,1750729840142,-463.74565172,0.00019275,2]
[367283440,1750729840153,-1010.28710057,0.00019275,2]
[367283442,1750729840163,-461.67216698,0.00019275,2]
[367283444,1750729840173,-465.80888932,0.00019275,2]
[367283446,1750729840183,-462.83548451,0.00019275,2]
[367283448,1750729840193,-463.07420911,0.00019275,2]
[367283450,1750729840203,-463.24165623,0.00019275,2]
[367283452,1750729840212,-463.07864817,0.00019275,2]
[367283454,1750729840222,-468.63663816,0.00019275,2]
[367283456,1750729840231,-461.35206637,0.00019275,2]
[367283458,1750729840241,-536.58158878,0.00019275,2]
[367283460,1750729840252,-460.0,0.00019275,2]
[367283462,1750729840261,-465.52564176,0.00019275,2]
[367283464,1750729840271,-460.0,0.00019275,2]
[367283466,1750729840280,-460.0,0.00019275,2]
[367283468,1750729840290,-432.40831993,0.00019275,2]
[367283471,1750729840302,-463.55622024,0.00019275,2]
[367283473,1750729840312,-309.43631587,0.00019275,2]
[367283475,1750729840322,-460.0,0.00019275,2]
[367283477,1750729840331,-751.82,0.00019275,2]
[367283479,1750729840341,-464.27902842,0.00019275,2]
[367283481,1750729840350,-460.0,0.00019275,2]
[367283483,1750729840360,-460.0,0.00019275,2]
[367283485,1750729840369,-460.0,0.00019275,2]
[367283487,1750729840378,-466.05902784,0.00019275,2]
[367283489,1750729840388,-460.0,0.00019275,2]
[367283491,1750729840397,-505.24301029,0.00019275,2]
[367283493,1750729840407,-589.38,0.00019275,2]
[367283495,1750729840416,-464.80389089,0.00019275,2]
[367283497,1750729840426,-460.0,0.00019275,2]
[367283499,1750729840435,-480.20573842,0.00019275,2]
[367283501,1750729840445,-542.44,0.00019275,2]
[367283503,1750729840454,-470.10691098,0.00019275,2]
[367283505,1750729840463,-460.0,0.00019275,2]
[367283507,1750729840473,-465.98167006,0.00019275,2]
[367283509,1750729840483,-502.67,0.00019275,2]
[367283511,1750729840496,-464.2090881,0.00019275,2]
[367283513,1750729840506,-560.44,0.00019275,2]
[367283515,1750729840515,-460.0,0.00019275,2]
[367283517,1750729840526,-460.0,0.00019275,2]
[367283519,1750729840536,-464.79279533,0.00019275,2]
[367283521,1750729840545,-469.5228802,0.00019275,2]
[367283523,1750729840555,-466.48540601,0.00019275,2]
[367283525,1750729840566,-460.0,0.00019275,2]
[367283527,1750729840576,-466.15744576,0.00019275,2]
[367283529,1750729840586,-460.0,0.00019275,2]
[367283531,1750729840595,-492.84065387,0.00019275,2]
[367283533,1750729840605,-462.49802791,0.00019275,2]
[367283535,1750729840614,-466.14345709,0.00019275,2]
[367283537,1750729840624,-460.0,0.00019275,2]
[367283540,1750729840634,-460.0,0.00019275,2]
[367283542,1750729840643,-460.0,0.00019275,2]
[367283544,1750729840653,-394.68292661,0.00019275,2]
[367283546,1750729840662,-460.0,0.00019275,2]
[367283548,1750729840671,-460.0,0.00019275,2]
[367283550,1750729840680,-460.0,0.00019275,2]
[367283552,1750729840690,-460.0,0.00019275,2]
[367283554,1750729840699,-460.0,0.00019275,2]
[367283556,1750729840709,-460.0,0.00019275,2]
[367283558,1750729840719,-460.0,0.00019275,2]
[367283560,1750729840728,-872.74,0.00019275,2]
[367283562,1750729840738,-461.45439657,0.00019276,2]
[367283564,1750729840748,-460.83879382,0.00019276,2]
[367283566,1750729840757,-460.65133366,0.00019276,2]
[367283568,1750729840766,-460.0,0.00019276,2]
[367283570,1750729840776,-461.47039422,0.00019276,2]
[367283572,1750729840785,-461.60322222,0.00019276,2]
[367283574,1750729840795,-431.83149627,0.00019276,2]
[367283576,1750729840805,-222.06,0.00019276,2]
[367283578,1750729840815,-460.0,0.00019276,2]
[367283580,1750729840823,-460.0,0.00019276,2]
[367283582,1750729840833,-460.0,0.00019276,2]
[367283584,1750729840843,-460.0,0.00019276,2]
[367283586,1750729840852,-480.17591236,0.00019318,2]
[367283588,1750729840862,-266.8255379,0.00019463,2]
[367283590,1750729840871,-2041.55,0.00019538,2]
[367283592,1750729840881,-718.71,0.00019538,2]
[367283594,1750729840890,-1384.21,0.00019538,2]
[367283596,1750729840899,-460.0,0.00019538,2]
[367283598,1750729840909,-1617.97,0.00019538,2]
[367283600,1750729840918,-2862.19,0.00019538,2]
[367283602,1750729840927,-460.0,0.00019538,2]
[367283603,1750729840938,-954.45,0.00019538,2]
[367283605,1750729840948,-505.66,0.00019538,2]
[367283607,1750729840958,-1608.11,0.00019538,2]
[367283609,1750729840968,-460.0,0.00019538,2]
[367283611,1750729840977,-943.67,0.00019538,2]
[367283613,1750729840986,-2312.41,0.00019538,2]
[367283615,1750729840996,-544.39,0.00019538,2]
[367283617,1750729841006,-728.72,0.00019538,2]
[367283619,1750729841015,-482.61,0.00019538,2]
[367283621,1750729841024,-575.82498035,0.00019538,2]
[367283624,1750729841034,-460.0,0.00019538,2]
[367283626,1750729841047,-460.0,0.00019538,2]
[367283628,1750729841058,-590.14,0.00019538,2]
[367283630,1750729841068,-1881.45,0.00019538,2]
[367283632,1750729841077,-1991.84,0.00019544,2]
[367283634,1750729841087,-460.0,0.00019544,2]
[367283636,1750729841097,-229.88661072,0.00019546,2]
[367283638,1750729841106,-220.05547621,0.00019546,2]
[367283640,1750729841116,-206.20949085,0.00019546,2]
[367283642,1750729841125,-460.0,0.00019546,2]
[367283644,1750729841135,-460.0,0.00019546,2]
[367283646,1750729841145,-281.68736709,0.00019546,2]
[367283648,1750729841155,-460.0,0.00019546,2]
[367283650,1750729841164,-788.45,0.00019546,2]
[367283652,1750729841174,-460.0,0.00019546,2]
[367283654,1750729841183,-460.0,0.00019546,2]
[367283656,1750729841193,-608.18509093,0.00019546,2]
[367283658,1750729841202,-460.0,0.00019546,2]
[367283660,1750729841212,-460.0,0.00019546,2]
[367283662,1750729841221,-489.94,0.00019546,2]
[367283664,1750729841231,-460.0,0.00019546,2]
[367283666,1750729841241,-460.67,0.00019546,2]
[367283668,1750729841251,-460.0,0.00019546,2]
[367283670,1750729841260,-855.58,0.00019546,2]
[367283672,1750729841270,-460.0,0.00019546,2]
[367283674,1750729841279,-550.84,0.00019546,2]
[367283675,1750729841288,-460.0,0.00019546,2]
[367283677,1750729841298,-562.6,0.00019546,2]
[367283679,1750729841307,-460.0,0.00019546,2]
[367283681,1750729841316,-559.62,0.00019546,2]
[367283683,1750729841326,-460.0,0.00019546,2]
[367283685,1750729841335,-710.17,0.00019546,2]
[367283688,1750729841345,-464.71800591,0.00019546,2]
[367283689,1750729841354,-460.0,0.00019546,2]
[367283691,1750729841363,-460.0,0.00019546,2]
[367283693,1750729841373,-460.0,0.00019546,2]
[367283695,1750729841383,-951.82,0.00019546,2]
[367283697,1750729841392,-460.0,0.00019546,2]
[367283699,1750729841401,-581.84563137,0.00019546,2]
[367283701,1750729841410,-461.49898289,0.00019546,2]
[367283703,1750729841420,-460.0,0.00019547,2]
[367283705,1750729841429,-460.0,0.00019547,2]
[367283707,1750729841439,-5006.2,0.00019547,2]
[367283709,1750729841448,-566.32,0.00019547,2]
[367283711,1750729841458,-590.65,0.00019547,2]
[367283713,1750729841467,-735.4,0.00019547,2]
[367283715,1750729841477,-460.0,0.00019547,2]
[367283717,1750729841488,-788.46,0.00019547,2]
[367283719,1750729841498,-2158.78,0.00019547,2]
[367283721,1750729841507,-634.94,0.00019547,2]
[367283723,1750729841517,-460.0,0.00019548,2]
[367283725,1750729841527,-454.38081202,0.00019548,2]
[367283727,1750729841537,-460.0,0.00019548,2]
[367283729,1750729841546,-627.15,0.00019548,2]
[367283731,1750729841556,-460.0,0.00019548,2]
[367283734,1750729841567,-460.0,0.00019548,2]
[367283735,1750729841577,-2277.37,0.00019548,2]
[367283738,1750729841587,-1169.76,0.00019548,2]
[367283740,1750729841596,-460.0,0.00019548,2]
[367283742,1750729841605,-2020.88,0.00019548,2]
[367283744,1750729841615,-970.52,0.00019548,2]
[367283745,1750729841625,-2957.17,0.00019548,2]
[367283748,1750729841635,-460.0,0.00019549,2]
[367283750,1750729841644,-460.0,0.00019549,2]
[367283752,1750729841654,-471.65933843,0.00019549,2]
[367283754,1750729841664,-460.0,0.00019549,2]
[367283756,1750729841674,-460.0,0.00019549,2]
[367283758,1750729841683,-751.82,0.00019549,2]
[367283760,1750729841694,-529.55738044,0.00019549,2]
[367283762,1750729841703,-460.0,0.00019549,2]
[367283764,1750729841713,-460.0,0.00019549,2]
[367283766,1750729841722,-460.0,0.00019549,2]
[367283768,1750729841731,-589.38,0.00019549,2]
[367283770,1750729841744,-460.0,0.00019549,2]
[367283772,1750729841753,-542.44,0.00019549,2]
[367283774,1750729841762,-460.0,0.00019549,2]
[367283776,1750729841771,-502.67,0.00019549,2]
[367283778,1750729841781,-560.44,0.00019549,2]
[367283780,1750729841790,-460.0,0.00019549,2]
[367283782,1750729841799,-460.0,0.00019549,2]
[367283784,1750729841809,-460.0,0.00019549,2]
[367283786,1750729841818,-460.0,0.00019549,2]
[367283788,1750729841827,-460.0,0.00019549,2]
[367283790,1750729841837,-460.0,0.00019549,2]
[367283792,1750729841846,-460.0,0.00019549,2]
[367283794,1750729841857,-530.55683638,0.00019549,2]
[367283796,1750729841868,-460.0,0.00019549,2]
[367283798,1750729841877,-460.0,0.00019549,2]
[367283800,1750729841886,-460.0,0.00019549,2]
[367283802,1750729841896,-460.0,0.00019549,2]
[367283804,1750729841905,-460.0,0.00019549,2]
[367283806,1750729841915,-460.0,0.00019549,2]
[367283808,1750729841924,-872.74,0.00019549,2]
[367283825,1750729842070,-460.0,0.0001955,2]
[367283827,1750729842079,-460.0,0.0001955,2]
[367283829,1750729842088,-405.1099034,0.0001955,2]
[367283830,1750729842098,-460.0,0.0001955,2]
[367283831,1750729842106,-460.0,0.0001955,2]
[367283832,1750729842117,-730.3463847,0.000196,2]
[367283833,1750729842126,-2313.48757085,0.000197,2]
[367283834,1750729842135,-1846.32213992,0.00019721,2]
[367283835,1750729842145,-275.3120225,0.000198,2]
[367283836,1750729842154,-365.8891638,0.000198,2]
[367283837,1750729842164,-153.0,0.000198,2]
[367283838,1750729842173,-365.8891638,0.000198,2]
[367283839,1750729842182,-212.1857138,0.000198,2]
[367283840,1750729842191,-153.0,0.000198,2]
[367283841,1750729842200,-365.4158063,0.000198,2]
[367283842,1750729842209,-306.8295048,0.000198,2]
[367283843,1750729842218,-5000.0,0.00019811,2]
[367283844,1750729842227,-2041.55,0.00019812,2]
[367283845,1750729842236,-718.71,0.00019812,2]
[367283846,1750729842245,-1384.21,0.00019812,2]
[367283847,1750729842254,-460.0,0.00019812,2]
[367283848,1750729842263,-1617.97,0.00019812,2]
[367283849,1750729842272,-2862.19,0.00019812,2]
[367283850,1750729842281,-460.0,0.00019812,2]
[367283851,1750729842290,-954.45,0.00019812,2]
[367283852,1750729842299,-505.66,0.00019812,2]
[367283853,1750729842308,-1608.11,0.00019812,2]
[367283854,1750729842317,-460.0,0.00019812,2]
[367283855,1750729842325,-943.67,0.00019812,2]
[367283856,1750729842334,-2312.41,0.00019812,2]
[367283857,1750729842343,-544.39,0.00019812,2]
[367283858,1750729842352,-728.72,0.00019812,2]
[367283859,1750729842361,-482.61,0.00019812,2]
[367283860,1750729842371,-460.0,0.00019812,2]
[367283861,1750729842379,-590.14,0.00019812,2]
[367283862,1750729842388,-1881.45,0.00019812,2]
[367283863,1750729842397,-1991.84,0.00019818,2]
[367283864,1750729842407,-184.86827798,0.00019818,2]
[367283865,1750729842415,-172.3743842,0.0001982,2]
[367283867,1750729842426,-567.36893212,0.0001982,2]
[367283868,1750729842435,-460.0,0.0001982,2]
[367283870,1750729842445,-460.0,0.0001982,2]
[367283872,1750729842454,-460.0,0.0001982,2]
[367283874,1750729842464,-788.45,0.0001982,2]
[367283876,1750729842473,-460.0,0.0001982,2]
[367283878,1750729842485,-460.0,0.0001982,2]
[367283880,1750729842494,-460.0,0.0001982,2]
[367283882,1750729842503,-460.0,0.0001982,2]
[367283884,1750729842513,-489.94,0.0001982,2]
[367283885,1750729842522,-460.0,0.0001982,2]
[367283887,1750729842534,-460.67,0.0001982,2]
[367283889,1750729842544,-460.0,0.0001982,2]
[367283891,1750729842553,-855.58,0.0001982,2]
[367283894,1750729842565,-460.0,0.0001982,2]
[367283895,1750729842574,-550.84,0.0001982,2]
[367283897,1750729842583,-460.0,0.0001982,2]
[367283899,1750729842593,-562.6,0.0001982,2]
[367283901,1750729842603,-460.0,0.0001982,2]
[367283903,1750729842612,-559.62,0.0001982,2]
[367283905,1750729842626,-460.0,0.0001982,2]
[367283907,1750729842636,-710.17,0.0001982,2]
[367283909,1750729842646,-460.0,0.0001982,2]
[367283911,1750729842655,-460.0,0.0001982,2]
[367283913,1750729842666,-460.0,0.0001982,2]
[367283915,1750729842677,-951.82,0.0001982,2]
[367283917,1750729842687,-460.0,0.0001982,2]
[367283919,1750729842697,-252311.06197158,0.0001982,2]
[367283921,1750729842707,-460.0,0.00019821,2]
[367283923,1750729842717,-460.0,0.00019821,2]
[367283925,1750729842727,-5006.2,0.00019821,2]
[367283927,1750729842737,-566.32,0.00019821,2]
[367283929,1750729842747,-590.65,0.00019821,2]
[367283931,1750729842757,-735.4,0.00019821,2]
[367283933,1750729842767,-460.0,0.00019821,2]
[367283935,1750729842777,-788.46,0.00019821,2]
[367283937,1750729842787,-2158.78,0.00019821,2]
[367283939,1750729842796,-634.94,0.00019821,2]
[367283941,1750729842806,-460.0,0.00019822,2]
[367283943,1750729842815,-551.91909847,0.00019822,2]
[367283945,1750729842824,-627.15,0.00019822,2]
[367283947,1750729842834,-460.0,0.00019822,2]
[367283949,1750729842843,-460.0,0.00019822,2]
[367283951,1750729842852,-2277.37,0.00019822,2]
[367283953,1750729842862,-1169.76,0.00019822,2]
[367283958,1750729842876,-460.0,0.00019822,2]
[367283961,1750729842886,-2020.88,0.00019822,2]
[367283964,1750729842895,-970.52,0.00019822,2]
[367283966,1750729842904,-2957.17,0.00019822,2]
[367283968,1750729842913,-460.0,0.00019823,2]
[367283970,1750729842923,-460.0,0.00019823,2]
[367283972,1750729842932,-460.0,0.00019823,2]
[367283974,1750729842941,-460.0,0.00019823,2]
[367283976,1750729842950,-460.0,0.00019823,2]
[367283978,1750729842959,-751.82,0.00019823,2]
[367283980,1750729842969,-460.0,0.00019823,2]
[367283982,1750729842978,-460.0,0.00019823,2]
[367283984,1750729842987,-460.0,0.00019823,2]
[367283986,1750729842996,-589.38,0.00019823,2]
[367283988,1750729843006,-460.0,0.00019823,2]
[367283990,1750729843016,-542.44,0.00019823,2]
[367283992,1750729843026,-420.49302246,0.00019823,2]
[367283994,1750729843035,-502.67,0.00019823,2]
[367283996,1750729843045,-560.44,0.00019823,2]
[367283998,1750729843054,-460.0,0.00019823,2]
[367284000,1750729843064,-460.0,0.00019823,2]
[367284002,1750729843073,-460.0,0.00019823,2]
[367284004,1750729843083,-460.0,0.00019823,2]
[367284006,1750729843093,-460.0,0.00019823,2]
[367284008,1750729843105,-460.0,0.00019823,2]
[367284010,1750729843116,-460.0,0.00019823,2]
[367284012,1750729843125,-460.0,0.00019823,2]
[367284014,1750729843135,-460.0,0.00019823,2]
[367284016,1750729843144,-460.0,0.00019823,2]
[367284018,1750729843154,-460.0,0.00019823,2]
[367284020,1750729843163,-460.0,0.00019823,2]
[367284022,1750729843173,-460.0,0.00019823,2]
[367284024,1750729843182,-872.74,0.00019823,2]
[367284026,1750729843191,-235.88377804,0.00019824,2]
[367284028,1750729843201,-460.0,0.00019824,2]
[367284030,1750729843210,-460.0,0.00019824,2]
[367284032,1750729843219,-460.0,0.00019824,2]
[367284034,1750729843229,-576.3761993,0.00019873,2]
[367284036,1750729843238,-500.0,0.00019873,2]
[367284038,1750729843247,-500.0,0.00019873,2]
[367284040,1750729843257,-500.0,0.00019873,2]
[367284042,1750729843266,-500.0,0.00019873,2]
[367284044,1750729843276,-500.0,0.00019873,2]
[367284046,1750729843285,-500.0,0.00019873,2]
[367284048,1750729843294,-500.0,0.00019873,2]
[367284050,1750729843303,-500.0,0.00019873,2]
[367284052,1750729843313,-503.12579535,0.00019873,2]
[367284054,1750729843322,-500.0,0.00019873,2]
[367284056,1750729843332,-452.1624179,0.00019873,2]
[367284058,1750729843342,-174.69466745,0.00019873,2]
[367284060,1750729843352,-500.0,0.00019873,2]
[367284062,1750729843364,-500.0,0.00019873,2]
[367284064,1750729843374,-300.32820398,0.00019873,2]
[367284066,1750729843383,-500.0,0.00019873,2]
[367284068,1750729843393,-615.24062976,0.00019873,2]
[367284070,1750729843402,-507.52564531,0.00019873,2]
[367284072,1750729843412,-500.0,0.00019873,2]
[367284074,1750729843421,-500.0,0.00019873,2]
[367284076,1750729843431,-500.0,0.00019873,2]
[367284078,1750729843440,-232.72454134,0.00019873,2]
[367284080,1750729843449,-500.0,0.00019873,2]
[367284082,1750729843459,-500.0,0.00019873,2]
[367284084,1750729843468,-500.0,0.00019873,2]
[367284086,1750729843478,-500.0,0.00019873,2]
[367284088,1750729843488,-508.95602287,0.0001988,2]
[367284090,1750729843499,-395.71653513,0.00019895,2]
[367284092,1750729843508,-900.000001,0.0001995,2]
[367284094,1750729843518,-600.47080186,0.00019955,2]
[367284096,1750729843527,-1369.071831,0.00019973,2]
[367284098,1750729843539,-42449.85849728,0.0001999,2]
[367284103,1750729843586,-1336.30043752,0.0001999,2]
[367284214,1750729844587,-466.99835421,0.00019264,2]
[367284216,1750729844596,-460.0,0.00019264,2]
[367284218,1750729844605,-460.0,0.00019264,2]
[367284220,1750729844614,-460.0,0.00019264,2]
[367284222,1750729844626,-460.0,0.00019272,2]
[367284224,1750729844637,-460.0,0.00019538,2]
[367284226,1750729844646,-460.0,0.00019538,2]
[367284228,1750729844656,-461.19240803,0.00019546,2]
[367284230,1750729844665,-460.0,0.00019812,2]
[367284232,1750729844675,-12338.51374448,0.0001999,2]
[367284440,1750729846691,-460.0,0.00019264,2]
[367284442,1750729846701,-171.6,0.00019538,2]
[367284444,1750729846710,-460.0,0.00019812,2]
[367284446,1750729846720,-4808.29317042,0.0001999,2]
[367288239,1750730015043,21524.89576359,0.00018267,2]
[367288240,1750730015065,3375.10423641,0.00018267,2]
[367288241,1750730114139,161.529154,0.00018267,2]
[367288242,1750730114373,161.529154,0.00018312,2]
[367288243,1750730114596,161.529154,0.00018358,2]
[367288244,1750730114966,156.60765153,0.00019164,2]
[367288245,1750730222114,156.67850191,7.2e-07,2]
[367288247,1750730312698,-157.29771641,0.00019164,2]
[367288248,1750730312720,-35.61026976,0.00019164,2]
[367288250,1750730381785,420.299798,0.00013699,2]
[367288252,1750730506491,-164.28874078,0.00019152,2]
[367288258,1750730701701,-165.666,0.00019152,2]
[367288259,1750730752211,920.4463861,0.00026171,120]
[367288260,1750730828131,-174.28,0.00019242,2]
[367288261,1750730828153,-258.34304426,0.00019251,2]
[367288262,1750730853795,-941.65695574,0.00019251,2]
[367288263,1750730853820,-300.0,0.00019251,2]
[367288264,1750730853844,-300.0,0.00019251,2]
[367288265,1750730853874,-453.18821338,0.00019251,2]
[367288266,1750730853897,-500.0,0.00019251,2]
[367288267,1750730853919,-460.0,0.00019252,2]
[367288268,1750730853940,-463.35853572,0.00019252,2]
[367288269,1750730853962,-230.10813448,0.00019252,2]
[367288270,1750730853984,-460.0,0.00019252,2]
[367288271,1750730854006,-460.0,0.00019252,2]
[367288272,1750730854028,-460.0,0.00019252,2]
[367288273,1750730854050,-460.0,0.00019252,2]
[367288274,1750730854072,-460.0,0.00019252,2]
[367288275,1750730854098,-556.5,0.00019252,2]
[367288276,1750730854122,-460.0,0.00019252,2]
[367288277,1750730854145,-434.60606724,0.00019252,2]
[367288278,1750730896872,-170.46100001,0.00019152,2]
[367288280,1750730932846,-202.69938057,0.00019152,2]
[367288281,1750730976993,20563.33000168,0.00018252,2]
[367288282,1750730977016,4336.66999832,0.00018252,2]
[367288311,1750731032667,-2542.6181904,0.00019178,2]
[367288314,1750731032678,-406.061545,0.00019178,2]
[367288316,1750731032687,-300.0,0.0001925,2]
[367288318,1750731032697,-1200.0,0.0001925,2]
[367288320,1750731032707,-166.0,0.0001925,2]
[367288322,1750731032716,-472.49136768,0.00019251,2]
[367288324,1750731032725,-460.0,0.00019251,2]
[367288326,1750731032734,-500.0,0.00019251,2]
[367288328,1750731032744,-500.0,0.00019251,2]
[367288330,1750731032753,-500.0,0.00019251,2]
[367288331,1750731032762,-215.13979513,0.00019251,2]
[367288333,1750731032771,-500.0,0.00019251,2]
[367288334,1750731032781,-500.0,0.00019251,2]
[367288336,1750731032791,-500.0,0.00019251,2]
[367288338,1750731032799,-500.0,0.00019251,2]
[367288341,1750731032808,-500.0,0.00019251,2]
[367288343,1750731032818,-500.0,0.00019251,2]
[367288345,1750731032827,-500.0,0.00019251,2]
[367288347,1750731032836,-500.0,0.00019251,2]
[367288349,1750731032846,-500.0,0.00019251,2]
[367288351,1750731032855,-500.0,0.00019251,2]
[367288353,1750731032866,-500.0,0.00019251,2]
[367288355,1750731032875,-500.0,0.00019251,2]
[367288357,1750731032885,-500.0,0.00019251,2]
[367288359,1750731032894,-500.0,0.00019251,2]
[367288361,1750731032903,-500.0,0.00019251,2]
[367288363,1750731032912,-331.0006633,0.00019251,2]
[367288365,1750731032922,-460.0,0.00019252,2]
[367288367,1750731032932,-469.94485835,0.00019252,2]
[367288369,1750731032943,-2193.7,0.00019252,2]
[367288371,1750731032953,-464.48609538,0.00019252,2]
[367288373,1750731032961,-460.0,0.00019252,2]
[367288375,1750731032971,-465.93682451,0.00019252,2]
[367288377,1750731032980,-811.09,0.00019252,2]
[367288379,1750731032989,-460.0,0.00019252,2]
[367288381,1750731032998,-460.0,0.00019252,2]
[367288384,1750731033008,-1659.52,0.00019252,2]
[367288385,1750731033017,-460.0,0.00019252,2]
[367288388,1750731033028,-460.0,0.00019252,2]
[367288390,1750731033038,-475.73,0.00019252,2]
[367288392,1750731033047,-1725.52,0.00019252,2]
[367288394,1750731033057,-460.0,0.00019252,2]
[367288395,1750731033066,-473.78,0.00019252,2]
[367288398,1750731033076,-3144.24,0.00019252,2]
[367288399,1750731033085,-460.0,0.00019252,2]
[367288402,1750731033095,-460.0,0.00019252,2]
[367288403,1750731033105,-460.0,0.00019252,2]
[367288405,1750731033114,-1711.24,0.00019252,2]
[367288407,1750731033124,-460.0,0.00019252,2]
[367288409,1750731033133,-421.61317237,0.00019252,2]
[367288411,1750731033142,-1262.91,0.00019252,2]
[367288414,1750731033152,-460.0,0.00019252,2]
[367288416,1750731033162,-460.0,0.00019252,2]
[367288418,1750731033173,-577.85,0.00019252,2]
[367288420,1750731033182,-460.0,0.00019252,2]
[367288421,1750731033192,-474.934022,0.00019252,2]
[367288423,1750731033201,-589.72324413,0.00019252,2]
[367288425,1750731033210,-477.94088228,0.00019252,2]
[367288427,1750731033220,-870.34,0.00019252,2]
[367288430,1750731033230,-463.00209772,0.00019252,2]
[367288431,1750731033240,-740.0,0.00019252,2]
[367288433,1750731033249,-2417.13,0.00019252,2]
[367288435,1750731033259,-422.45622705,0.00019252,2]
[367288437,1750731033269,-485.75168871,0.00019252,2]
[367288439,1750731033278,-567.91,0.00019252,2]
[367288442,1750731033288,-460.0,0.00019252,2]
[367288443,1750731033298,-460.0,0.00019252,2]
[367288444,1750731033307,-607.26,0.00019252,2]
[367288445,1750731033316,-460.0,0.00019252,2]
[367288446,1750731033326,-1856.77,0.00019252,2]
[367288447,1750731033335,-25000.0,0.00019252,2]
[367288448,1750731033345,-15607.30740565,0.00019252,2]
[367288449,1750731033354,-151.0,0.00019252,2]
[367288450,1750731033364,-207.4,0.00019252,2]
[367288451,1750731033373,-151.0,0.00019252,2]
[367288452,1750731033383,-151.0,0.00019252,2]
[367288453,1750731033393,-151.0,0.00019252,2]
[367288454,1750731033403,-151.0,0.00019252,2]
[367288455,1750731033413,-151.0,0.00019252,2]
[367288456,1750731033424,-151.0,0.00019252,2]
[367288457,1750731033433,-151.0,0.00019252,2]
[367288458,1750731033443,-152.60572485,0.00019252,2]
[367288459,1750731033453,-151.0,0.00019252,2]
[367288460,1750731033463,-500.0,0.00019252,2]
[367288461,1750731033473,-246.41887226,0.00019252,2]
[367288462,1750731033483,-151.0,0.00019252,2]
[367288463,1750731033492,-500.0,0.00019252,2]
[367288464,1750731033502,-500.0,0.00019252,2]
[367288465,1750731033512,-151.0,0.00019252,2]
[367288466,1750731033521,-500.0,0.00019252,2]
[367288467,1750731033531,-500.0,0.00019252,2]
[367288468,1750731033541,-151.0,0.00019252,2]
[367288469,1750731033551,-500.0,0.00019252,2]
[367288470,1750731033561,-1688.0,0.00019252,2]
[367288471,1750731033570,-151.0,0.00019252,2]
[367288472,1750731033580,-151.0,0.00019252,2]
[367288473,1750731033589,-500.0,0.00019252,2]
[367288474,1750731033598,-500.0,0.00019252,2]
[367288475,1750731033608,-151.0,0.00019252,2]
[367288476,1750731033618,-151.0,0.00019252,2]
[367288477,1750731033627,-500.0,0.00019252,2]
[367288478,1750731033637,-151.0,0.00019252,2]
[367288479,1750731033646,-500.0,0.00019252,2]
[367288480,1750731033655,-500.0,0.00019252,2]
[367288481,1750731033665,-240.63932268,0.00019252,2]
[367288482,1750731033675,-151.0,0.00019252,2]
[367288483,1750731033685,-500.0,0.00019252,2]